bitfinex-derivatives/quotes_BTCF0:USTF0_20250114
["timestamp","ask_amount","ask_price","bid_price","bid_amount"]
[1736838748905,0.052582,95131.0,95130.0,0.00157649]
[1736838750004,0.053582,95131.0,95130.0,0.00157649]
[1736838751905,0.054582,95131.0,95130.0,0.00157649]
[1736838752803,0.054582,95131.0,95118.0,0.0325]
[1736838752804,0.052587,95123.0,95118.0,0.0325]
[1736838753406,0.002,95131.0,95130.0,0.052583]
[1736838753597,0.052577,95140.0,95137.0,0.052579]
[1736838753803,0.052577,95140.0,95139.0,0.3608]
[1736838756307,0.054577,95140.0,95139.0,0.3608]
[1736838757206,0.054577,95140.0,95139.0,0.37157085]
[1736838761705,0.415377,95140.0,95139.0,0.01077085]
[1736838761913,0.052582,95131.0,95130.0,0.43036221]
[1736838762221,0.052582,95131.0,95130.0,0.3608]
[1736838763515,0.053582,95131.0,95130.0,0.3608]
[1736838764219,0.054582,95131.0,95130.0,0.3608]
[1736838764924,0.054582,95131.0,95130.0,0.37157269]
[1736838771124,0.054582,95131.0,95130.0,0.42415569]
[1736838775933,0.054582,95131.0,95130.0,0.37157269]
[1736838781833,0.054582,95131.0,95130.0,0.55957058]
[1736838782738,0.054582,95131.0,95130.0,0.37157269]
[1736838791037,0.054582,95131.0,95130.0,0.01077269]
[1736838791243,0.054582,95131.0,95130.0,0.3608]
[1736838792048,0.052583,95130.0,95129.0,0.052583]
[1736838792242,0.052583,95130.0,95129.0,0.413383]
[1736838793332,0.053583,95130.0,95129.0,0.413383]
[1736838793537,0.054583,95130.0,95129.0,0.413383]
[1736838793738,0.054583,95130.0,95129.0,0.3715045]
[1736838799248,0.054583,95130.0,95129.0,0.62195579]
[1736838800244,0.054583,95130.0,95129.0,0.3715045]
[1736838800439,0.053583,95130.0,95129.0,0.3715045]
[1736838800649,0.054583,95130.0,95129.0,0.3715045]
[1736838812247,0.054583,95130.0,95129.0,0.0107045]
[1736838812448,0.052586,95125.0,95124.0,0.3608]
[1736838813758,0.053586,95125.0,95124.0,0.3608]
[1736838813958,0.054586,95125.0,95124.0,0.3608]
[1736838819853,0.002,95125.0,95124.0,0.413386]
[1736838820065,0.052584,95128.0,95127.0,0.052585]
[1736838821357,0.053584,95128.0,95127.0,0.052585]
[1736838821550,0.054584,95128.0,95127.0,0.052585]
[1736838822158,0.054584,95128.0,95127.0,0.082685]
[1736838823659,0.002,95128.0,95127.0,0.443485]
[1736838823867,0.0324,95149.0,95127.0,0.443485]
[1736838823868,0.0324,95149.0,95127.0,0.3909]
[1736838824069,0.0324,95149.0,95138.0,0.3608]
[1736838824262,0.052578,95139.0,95138.0,0.3608]
[1736838825162,0.052578,95139.0,95138.0,0.3618]
[1736838827861,0.052578,95139.0,95138.0,0.37242485]
[1736838828269,0.053578,95139.0,95138.0,0.37342485]
[1736838835767,0.053578,95139.0,95138.0,0.42600285]
[1736838836768,0.001,95139.0,95138.0,0.42600285]
[1736838837163,0.053578,95139.0,95138.0,0.42600285]
[1736838842470,0.0627,95158.0,95138.0,0.37442485]
[1736838842683,0.052571,95153.0,95152.0,0.052571]
[1736838842978,0.052568,95157.0,95156.0,0.052568]
[1736838843284,0.05257,95153.0,95152.0,0.052571]
[1736838844080,0.0616,95168.0,95152.0,0.56536]
[1736838844283,0.052564,95165.0,95164.0,0.052564]
[1736838845686,0.053564,95165.0,95164.0,0.054564]
[1736838845878,0.001,95165.0,95164.0,0.054564]
[1736838846282,0.052561,95169.0,95167.0,0.052562]
[1736838846986,0.052561,95169.0,95164.0,0.003]
[1736838847186,0.052561,95169.0,95168.0,0.052562]
[1736838848480,0.052561,95169.0,95168.0,0.002]
[1736838849185,0.053561,95169.0,95168.0,0.002]
[1736838849579,0.052561,95169.0,95168.0,0.002]
[1736838849791,0.053561,95169.0,95168.0,0.004]
[1736838851093,0.053561,95169.0,95168.0,0.002]
[1736838851293,0.053561,95169.0,95168.0,0.004]
[1736838851994,0.052561,95169.0,95168.0,0.002]
[1736838852198,0.053561,95169.0,95168.0,0.004]
[1736838852596,0.053561,95169.0,95168.0,0.002]
[1736838852597,0.052561,95169.0,95168.0,0.002]
[1736838852800,0.053561,95169.0,95168.0,0.004]
[1736838853196,0.052561,95169.0,95168.0,0.002]
[1736838853401,0.053561,95169.0,95168.0,0.004]
[1736838854795,0.053561,95169.0,95168.0,0.002]
[1736838855002,0.053561,95169.0,95168.0,0.004]
[1736838856606,0.052561,95169.0,95168.0,0.002]
[1736838856901,0.052561,95169.0,95168.0,0.004]
[1736838856902,0.053561,95169.0,95168.0,0.004]
[1736838862004,0.053561,95169.0,95168.0,0.003]
[1736838869720,0.414361,95169.0,95168.0,0.002]
[1736838869910,0.414361,95169.0,95168.0,0.003]
[1736838870109,0.413361,95169.0,95168.0,0.001]
[1736838870313,0.413361,95169.0,95168.0,0.003]
[1736838870609,0.413361,95169.0,95168.0,0.002]
[1736838871807,0.42387536,95169.0,95168.0,0.002]
[1736838873323,0.05257,95154.0,95153.0,0.01064082]
[1736838873518,0.05257,95153.0,95152.0,0.56636]
[1736838873717,0.05257,95153.0,95152.0,0.56536]
[1736838873919,0.05257,95153.0,95152.0,0.57575422]
[1736838874123,0.05257,95153.0,95152.0,0.01039422]
[1736838874327,0.05257,95153.0,95140.0,0.31048695]
[1736838874529,0.052575,95145.0,95140.0,0.12213921]
[1736838874721,0.052575,95145.0,95138.0,0.18834774]
[1736838875827,0.052575,95145.0,95138.0,0.052578]
[1736838876216,0.052575,95145.0,95144.0,0.37268602]
[1736838876629,0.053575,95145.0,95144.0,0.37468602]
[1736838877923,0.053575,95145.0,95144.0,0.37668602]
[1736838881926,0.053575,95145.0,95144.0,0.01588602]
[1736838883027,0.053575,95145.0,95144.0,0.01388602]
[1736838883224,0.053575,95145.0,95144.0,0.01588602]
[1736838886333,0.053575,95145.0,95144.0,0.00557638]
[1736838887034,0.414375,95145.0,95144.0,0.00557638]
[1736838887225,0.414375,95145.0,95144.0,0.004]
[1736838888438,0.414375,95145.0,95135.0,0.3608]
[1736838888734,0.414375,95145.0,95130.0,0.18834774]
[1736838888735,0.052582,95132.0,95130.0,0.18834774]
[1736838888933,0.052582,95132.0,95125.0,0.56632]
[1736838889435,0.052585,95126.0,95125.0,0.56632]
[1736838889737,0.052585,95126.0,95125.0,0.56532]
[1736838890535,0.052585,95126.0,95125.0,0.57597242]
[1736838892043,0.053585,95126.0,95125.0,0.57597242]
[1736838892427,0.054585,95126.0,95125.0,0.57597242]
[1736838901937,0.054585,95126.0,95125.0,0.69105842]
[1736838904343,0.054585,95126.0,95125.0,1.05185842]
[1736838906229,0.054585,95126.0,95125.0,0.99927242]
[1736838906633,0.054585,95126.0,95125.0,0.93677242]
[1736838912543,0.054585,95126.0,95125.0,1.12512016]
[1736838915048,0.054585,95126.0,95125.0,0.93677242]
[1736838919049,0.054585,95126.0,95125.0,0.37145242]
[1736838925557,0.054585,95126.0,95125.0,0.42403842]
[1736838928260,0.054585,95126.0,95125.0,0.45643842]
[1736838929559,0.054585,95126.0,95125.0,0.64461316]
[1736838930960,0.054585,95126.0,95125.0,0.45643842]
[1736838933658,0.054585,95126.0,95125.0,0.64462534]
[1736838934363,0.054585,95126.0,95125.0,0.59203934]
[1736838938867,0.054585,95126.0,95125.0,0.40385242]
[1736838941362,0.054585,95126.0,95125.0,0.37145242]
[1736838941963,0.053585,95126.0,95125.0,0.37145242]
[1736838942168,0.054585,95126.0,95125.0,0.37145242]
[1736838942765,0.053585,95126.0,95125.0,0.37145242]
[1736838942964,0.054585,95126.0,95125.0,0.37145242]
[1736838956171,0.054585,95126.0,95125.0,0.42403842]
[1736838958675,0.054585,95126.0,95125.0,0.78483842]
[1736838960179,0.054585,95126.0,95125.0,0.73225242]
[1736838963976,0.054585,95126.0,95125.0,0.37145242]
[1736838964378,0.054585,95126.0,95125.0,0.01065242]
[1736838964677,0.054585,95126.0,95125.0,0.3608]
[1736838970887,0.002,95126.0,95124.0,0.01079329]
[1736838971191,0.054585,95126.0,95125.0,0.3608]
[1736838971491,0.052586,95124.0,95123.0,0.24069327]
[1736838972888,0.052586,95124.0,95123.0,0.54890727]
[1736838973091,0.052586,95124.0,95123.0,0.55924159]
[1736838973892,0.053586,95124.0,95123.0,0.55924159]
[1736838974193,0.054586,95124.0,95123.0,0.55924159]
[1736838974593,0.054586,95124.0,95123.0,0.19844159]
[1736838974802,0.054586,95124.0,95123.0,0.37113432]
[1736838978988,0.054586,95124.0,95123.0,0.55924159]
[1736838981994,0.054586,95124.0,95123.0,0.37113432]
[1736838986893,0.054586,95124.0,95123.0,0.01033432]
[1736838987093,0.052587,95123.0,95122.0,0.25045129]
[1736838987302,0.052587,95123.0,95122.0,0.97205129]
[1736838987600,0.052587,95123.0,95122.0,0.98234766]
[1736838988497,0.053587,95123.0,95122.0,0.98234766]
[1736838989303,0.054587,95123.0,95122.0,0.98234766]
[1736838989498,0.054587,95123.0,95122.0,0.73189637]
[1736838991902,0.054587,95123.0,95122.0,0.78448337]
[1736838994903,0.054587,95123.0,95122.0,1.34992337]
[1736838998200,0.054587,95123.0,95122.0,1.60083618]
[1736839001707,0.054587,95123.0,95122.0,1.34992337]
[1736839002104,0.054587,95123.0,95122.0,0.62832337]
[1736839002405,0.054587,95123.0,95122.0,1.34992337]
[1736839005416,0.054587,95123.0,95122.0,0.62832337]
[1736839005609,0.054587,95123.0,95122.0,1.34992337]
[1736839018232,0.054587,95123.0,95122.0,0.62832337]
[1736839018428,0.054587,95123.0,95122.0,1.34992337]
[1736839019931,0.054587,95123.0,95122.0,1.6009113]
[1736839020735,0.054587,95123.0,95122.0,1.34992337]
[1736839023039,0.054587,95123.0,95122.0,1.6009194]
[1736839024732,0.054587,95123.0,95122.0,0.62832337]
[1736839024932,0.054587,95123.0,95122.0,1.34992337]
[1736839025841,0.054587,95123.0,95122.0,1.29733637]
[1736839029138,0.054587,95123.0,95122.0,1.28704]
[1736839030027,0.002,95123.0,95116.0,0.25101222]
[1736839030226,0.002,95123.0,95116.0,0.20111222]
[1736839030227,0.05259,95117.0,95116.0,0.20111222]
[1736839030633,0.052596,95107.0,95106.0,0.31306411]
[1736839030839,0.3608,95109.0,95105.0,0.00157705]
[1736839031140,0.0312,95108.0,95105.0,0.00157705]
[1736839031639,0.052596,95106.0,95105.0,0.00157705]
[1736839033031,0.052599,95101.0,95100.0,0.1]
[1736839033233,0.052604,95092.0,95091.0,0.3608]
[1736839033834,0.052604,95092.0,95091.0,0.37110043]
[1736839035349,0.053604,95092.0,95091.0,0.37110043]
[1736839038948,0.053604,95092.0,95091.0,0.3608]
[1736839039244,0.05261,95081.0,95080.0,0.43036221]
[1736839039539,0.052615,95072.0,95071.0,0.00157775]
[1736839039748,0.052615,95072.0,95071.0,0.01236899]
[1736839039945,0.052615,95072.0,95071.0,0.00157775]
[1736839040243,0.052615,95072.0,95071.0,0.36237775]
[1736839041641,0.053615,95072.0,95071.0,0.36237775]
[1736839041841,0.054615,95072.0,95071.0,0.36237775]
[1736839042640,0.054615,95072.0,95071.0,0.3608]
[1736839043743,0.002,95072.0,95071.0,0.413415]
[1736839044036,0.052613,95077.0,95071.0,0.3608]
[1736839044634,0.052613,95077.0,95076.0,0.052613]
[1736839045243,0.053613,95077.0,95076.0,0.052613]
[1736839045839,0.054613,95077.0,95076.0,0.052613]
[1736839046748,0.053613,95077.0,95076.0,0.052613]
[1736839046954,0.054613,95077.0,95076.0,0.053613]
[1736839050649,0.054613,95077.0,95076.0,0.001]
[1736839052448,0.415413,95077.0,95076.0,0.001]
[1736839052751,0.052618,95066.0,95065.0,0.5656]
[1736839052952,0.413418,95066.0,95065.0,0.5656]
[1736839053253,0.052623,95057.0,95056.0,0.18804465]
[1736839053454,0.413423,95057.0,95056.0,0.19856653]
[1736839054045,0.413423,95057.0,95056.0,0.01052188]
[1736839054357,0.052626,95052.0,95049.0,0.052627]
[1736839055651,0.052626,95052.0,95048.0,0.0307]
[1736839055956,0.051626,95052.0,95048.0,0.0307]
[1736839056455,0.052626,95052.0,95051.0,0.00257797]
[1736839056656,0.053626,95052.0,95051.0,0.00257797]
[1736839058453,0.053626,95052.0,95051.0,0.01313194]
[1736839063355,0.053626,95052.0,95051.0,0.06575894]
[1736839064747,0.053626,95052.0,95051.0,0.09755894]
[1736839068254,0.053626,95052.0,95051.0,0.04493194]
[1736839068568,0.05351388,95052.0,95051.0,0.01313194]
[1736839080470,0.05351388,95052.0,95051.0,0.20117659]
[1736839081565,0.05351388,95052.0,95051.0,0.01313194]
[1736839096079,0.05351388,95052.0,95051.0,0.06575894]
[1736839096867,0.05351388,95052.0,95051.0,0.06418097]
[1736839106783,0.05351388,95052.0,95051.0,0.31567784]
[1736839110086,0.05351388,95052.0,95051.0,0.06418097]
[1736839114277,0.05351388,95052.0,95051.0,0.01155397]
[1736839120893,0.05351388,95052.0,95051.0,0.06418097]
[1736839122493,0.3608,95062.0,95051.0,0.06418097]
[1736839122693,0.00157835,95072.0,95051.0,0.06418097]
[1736839122694,0.052617,95071.0,95070.0,0.052616]
[1736839122887,0.05261,95081.0,95078.0,0.052612]
[1736839123083,0.052615,95073.0,95072.0,0.12240612]
[1736839123283,0.052615,95073.0,95072.0,0.052614]
[1736839124291,0.052617,95069.0,95068.0,0.25113802]
[1736839124994,0.0643,95072.0,95065.0,0.1883153]
[1736839125191,0.052618,95066.0,95065.0,0.1883153]
[1736839126098,0.052619,95064.0,95063.0,0.05262]
[1736839127293,0.052619,95064.0,95063.0,0.01036442]
[1736839127596,0.052619,95064.0,95062.0,0.1883153]
[1736839127597,0.05262,95063.0,95062.0,0.1883153]
[1736839128497,0.05262,95062.0,95061.0,0.052621]
[1736839128696,0.05162,95062.0,95061.0,0.052621]
[1736839129302,0.05162,95062.0,95061.0,0.06300231]
[1736839129801,0.05062,95062.0,95061.0,0.06300231]
[1736839130305,0.05162,95062.0,95061.0,0.06400231]
[1736839130898,0.05262,95062.0,95061.0,0.06400231]
[1736839135312,0.05262,95062.0,95061.0,0.01138131]
[1736839135497,0.05262,95062.0,95061.0,0.001]
[1736839137107,0.05262,95062.0,95055.0,0.01076861]
[1736839137108,0.052624,95056.0,95055.0,0.01076861]
[1736839137305,0.052624,95056.0,95050.0,0.10631983]
[1736839137495,0.052627,95051.0,95050.0,0.10631983]
[1736839137705,0.052628,95048.0,95047.0,0.1883153]
[1736839138498,0.052628,95048.0,95047.0,0.19896259]
[1736839138999,0.052628,95048.0,95047.0,0.01064729]
[1736839139200,0.052627,95050.0,95045.0,0.052629]
[1736839139398,0.052629,95046.0,95045.0,0.052629]
[1736839140205,0.052629,95046.0,95045.0,0.06294716]
[1736839141000,0.053629,95046.0,95045.0,0.06294716]
[1736839142006,0.054629,95046.0,95045.0,0.06294716]
[1736839145304,0.002,95046.0,95045.0,0.06294716]
[1736839145605,0.052619,95065.0,95057.0,0.052623]
[1736839145806,0.052619,95065.0,95046.0,0.052629]
[1736839145807,0.052619,95065.0,95064.0,0.052619]
[1736839146210,0.0015783,95067.0,95066.0,0.052618]
[1736839146807,0.0317,95089.0,95081.0,0.05261]
[1736839147014,0.052611,95080.0,95079.0,0.15893083]
[1736839147213,0.052611,95080.0,95079.0,0.052611]
[1736839148109,0.052611,95079.0,95078.0,0.3608]
[1736839148311,0.052613,95075.0,95074.0,0.619694]
[1736839148616,0.052613,95075.0,95074.0,0.618494]
[1736839149115,0.052613,95075.0,95074.0,0.8068093]
[1736839150010,0.052613,95075.0,95074.0,0.618494]
[1736839150223,0.053613,95075.0,95074.0,0.56788]
[1736839150610,0.414413,95075.0,95074.0,0.56788]
[1736839151118,0.415413,95075.0,95074.0,0.56888]
[1736839151916,0.414413,95075.0,95074.0,0.56788]
[1736839152509,0.414413,95075.0,95074.0,0.56688]
[1736839152817,0.414413,95075.0,95074.0,0.56788]
[1736839153320,0.413413,95075.0,95074.0,0.56688]
[1736839153518,0.414413,95075.0,95074.0,0.56788]
[1736839154718,0.414413,95075.0,95074.0,0.002]
[1736839155818,0.414413,95075.0,95056.0,0.1883153]
[1736839156020,0.052622,95060.0,95056.0,0.1883153]
[1736839156610,0.052622,95060.0,95054.0,0.00157792]
[1736839157120,0.052624,95055.0,95054.0,0.00157792]
[1736839159324,0.0304,95059.0,95052.0,0.0329]
[1736839159529,0.052625,95053.0,95052.0,0.0329]
[1736839160524,0.052625,95053.0,95052.0,0.04343514]
[1736839161326,0.414425,95053.0,95052.0,0.04343514]
[1736839161524,0.414425,95053.0,95052.0,0.01053514]
[1736839161725,0.052626,95052.0,95051.0,0.56704]
[1736839161922,0.052626,95052.0,95051.0,0.56584]
[1736839162121,0.052626,95052.0,95051.0,0.57614729]
[1736839162521,0.052626,95052.0,95051.0,0.56584]
[1736839163426,0.053626,95052.0,95051.0,0.56584]
[1736839164132,0.054626,95052.0,95051.0,0.56584]
[1736839167235,0.054626,95052.0,95042.0,0.052631]
[1736839167536,0.052631,95043.0,95042.0,0.052631]
[1736839168038,0.052631,95043.0,95042.0,0.06334905]
[1736839168436,0.052631,95043.0,95042.0,0.01071805]
[1736839168638,0.3608,95051.0,95041.0,0.0324]
[1736839168829,0.052632,95042.0,95041.0,0.0324]
[1736839170439,0.053632,95042.0,95041.0,0.0324]
[1736839170736,0.053632,95042.0,95041.0,0.04300095]
[1736839171636,0.053632,95042.0,95041.0,0.01060095]
[1736839171839,0.052633,95040.0,95039.0,0.0317]
[1736839172534,0.052633,95040.0,95039.0,0.04242967]
[1736839173037,0.053633,95040.0,95039.0,0.04242967]
[1736839173224,0.054633,95040.0,95039.0,0.04242967]
[1736839176234,0.054633,95040.0,95039.0,0.02242967]
[1736839180444,0.054633,95040.0,95039.0,0.21074497]
[1736839182041,0.054633,95040.0,95039.0,0.01072967]
[1736839182348,0.054633,95040.0,95033.0,0.25113802]
[1736839182349,0.052636,95034.0,95033.0,0.25113802]
[1736839182939,0.054633,95040.0,95033.0,0.18857372]
[1736839183239,0.052636,95034.0,95033.0,0.19921272]
[1736839183847,0.053636,95034.0,95033.0,0.19921272]
[1736839184045,0.053636,95034.0,95033.0,0.25184972]
[1736839184548,0.053636,95034.0,95033.0,0.063276]
[1736839185538,0.054636,95034.0,95033.0,0.010639]
[1736839185738,0.054636,95034.0,95031.0,0.56704]
[1736839185739,0.002,95034.0,95031.0,0.56704]
[1736839186044,0.052637,95032.0,95031.0,0.56588]
[1736839186745,0.052637,95032.0,95031.0,0.57627948]
[1736839188139,0.052637,95032.0,95031.0,0.62891748]
[1736839188541,0.052628,95049.0,95042.0,0.052631]
[1736839188742,0.05263,95044.0,95043.0,0.0624]
[1736839189845,0.05263,95044.0,95043.0,0.115031]
[1736839190042,0.05363,95044.0,95043.0,0.0624]
[1736839190437,0.05463,95044.0,95043.0,0.0634]
[1736839191346,0.05463,95044.0,95043.0,0.25206793]
[1736839192239,0.05463,95044.0,95043.0,0.0634]
[1736839192644,0.05463,95044.0,95043.0,0.116031]
[1736839193344,0.052628,95048.0,95044.0,0.05263]
[1736839193542,0.052628,95048.0,95047.0,0.413429]
[1736839194642,0.053628,95048.0,95047.0,0.413429]
[1736839195347,0.053628,95048.0,95047.0,0.414429]
[1736839195541,0.054628,95048.0,95047.0,0.414429]
[1736839196141,0.053628,95048.0,95047.0,0.414429]
[1736839196347,0.054628,95048.0,95047.0,0.416429]
[1736839199941,0.054628,95048.0,95047.0,0.66774928]
[1736839200746,0.054628,95048.0,95047.0,0.416429]
[1736839202759,0.054628,95048.0,95047.0,0.60488325]
[1736839203750,0.054628,95048.0,95047.0,0.416429]
[1736839207756,0.054628,95048.0,95047.0,0.55225425]
[1736839208554,0.054628,95048.0,95047.0,0.3638]
[1736839208752,0.054628,95048.0,95047.0,0.003]
[1736839208958,0.415428,95048.0,95047.0,0.003]
[1736839223561,0.415428,95048.0,95047.0,0.055629]
[1736839223562,0.054628,95048.0,95047.0,0.055629]
[1736839223963,0.054628,95048.0,95047.0,0.086129]
[1736839224350,0.002,95048.0,95047.0,0.086129]
[1736839226059,0.002,95048.0,95047.0,0.27459274]
[1736839227266,0.002,95048.0,95047.0,0.086129]
[1736839230165,0.002,95048.0,95047.0,0.27457312]
[1736839231067,0.002,95048.0,95047.0,0.086129]
[1736839232969,0.002,95048.0,95047.0,0.27457312]
[1736839233468,0.002,95048.0,95047.0,0.84049312]
[1736839234368,0.002,95048.0,95047.0,0.652049]
[1736839234669,0.054628,95048.0,95047.0,0.652049]
[1736839236767,0.054628,95048.0,95047.0,0.59942]
[1736839240566,0.054628,95048.0,95047.0,0.56892]
[1736839247578,0.054628,95048.0,95047.0,0.003]
[1736839266187,0.415428,95048.0,95047.0,0.003]
[1736839268993,0.415428,95048.0,95036.0,0.18849427]
[1736839268994,0.052634,95037.0,95036.0,0.18849427]
[1736839269191,0.413434,95037.0,95036.0,0.18849427]
[1736839270189,0.050637,95032.0,95031.0,0.18849427]
[1736839270778,0.049637,95032.0,95031.0,0.18849427]
[1736839271394,0.050637,95032.0,95031.0,0.18949427]
[1736839271991,0.050637,95032.0,95031.0,0.001]
[1736839272489,0.051637,95032.0,95031.0,0.001]
[1736839282611,0.002,95032.0,95018.0,0.18893096]
[1736839282909,0.002,95032.0,95018.0,0.19941558]
[1736839282910,0.413444,95019.0,95018.0,0.19941558]
[1736839284310,0.414444,95019.0,95018.0,0.01048462]
[1736839284513,0.3618,95019.0,95017.0,0.0301]
[1736839284707,0.052645,95018.0,95017.0,0.0301]
[1736839284907,0.052645,95018.0,95017.0,0.0405403]
[1736839286710,0.053645,95018.0,95017.0,0.0405403]
[1736839287112,0.054645,95018.0,95017.0,0.0405403]
[1736839287713,0.054645,95018.0,95017.0,0.0104403]
[1736839287919,0.054645,95018.0,95008.0,0.0316]
[1736839288111,0.05265,95009.0,95008.0,0.0316]
[1736839289820,0.05365,95009.0,95008.0,0.0316]
[1736839290920,0.05465,95009.0,95008.0,0.0316]
[1736839294522,0.41545,95009.0,95008.0,0.0316]
[1736839297325,0.05465,95009.0,95008.0,0.0316]
[1736839302621,0.05465,95009.0,95008.0,0.08425]
[1736839304129,0.052645,95019.0,95018.0,0.052644]
[1736839305229,0.05421797,95029.0,95028.0,0.052639]
[1736839305430,0.05421797,95029.0,95018.0,0.3608]
[1736839305431,0.3608,95033.0,95032.0,0.052637]
[1736839305629,0.052638,95032.0,95031.0,0.052637]
[1736839306324,0.052644,95020.0,95019.0,0.18881153]
[1736839307031,0.3608,95024.0,95018.0,0.052644]
[1736839307230,0.052644,95019.0,95018.0,0.052644]
[1736839308331,0.052644,95019.0,95018.0,0.06607181]
[1736839309335,0.053644,95019.0,95018.0,0.06707181]
[1736839310031,0.054644,95019.0,95018.0,0.06707181]
[1736839317436,0.054644,95019.0,95018.0,0.2558429]
[1736839319646,0.054644,95019.0,95018.0,0.06707181]
[1736839321149,0.3608,95042.0,95018.0,0.01542781]
[1736839321444,0.052637,95033.0,95032.0,0.43061132]
[1736839321641,0.052637,95033.0,95032.0,0.3608]
[1736839322943,0.052637,95033.0,95032.0,0.37710562]
[1736839323140,0.052637,95033.0,95032.0,0.42974262]
[1736839323338,0.053637,95033.0,95032.0,0.42974262]
[1736839326852,0.001,95033.0,95032.0,0.42974262]
[1736839331759,0.053637,95033.0,95032.0,0.42974262]
[1736839334257,0.001,95033.0,95032.0,0.42974262]
[1736839334554,0.052631,95043.0,95042.0,0.052629]
[1736839334761,0.052629,95047.0,95046.0,0.052628]
[1736839335053,0.052626,95052.0,95051.0,0.052626]
[1736839336561,0.052626,95052.0,95051.0,0.053626]
[1736839338049,0.052626,95052.0,95051.0,0.07019743]
[1736839340563,0.052621,95062.0,95061.0,0.05262]
[1736839340757,0.36140001,95068.0,95060.0,0.3608]
[1736839340950,0.052617,95069.0,95061.0,0.052621]
[1736839341156,0.0633,95075.0,95060.0,0.3608]
[1736839341358,0.052617,95069.0,95065.0,0.10637467]
[1736839341662,0.052617,95069.0,95060.0,0.3608]
[1736839341864,0.052617,95069.0,95068.0,0.413417]
[1736839343353,0.052617,95069.0,95068.0,0.415417]
[1736839343354,0.053617,95069.0,95068.0,0.415417]
[1736839343563,0.001,95069.0,95068.0,0.415417]
[1736839345151,0.001,95069.0,95068.0,0.417417]
[1736839346465,0.001,95069.0,95068.0,0.43359235]
[1736839348055,0.053617,95069.0,95068.0,0.02017535]
[1736839348958,0.414417,95069.0,95068.0,0.02017535]
[1736839350362,0.414417,95069.0,95068.0,0.004]
[1736839354564,0.714417,95069.0,95040.0,0.3608]
[1736839354768,0.05263,95045.0,95040.0,0.3608]
[1736839354963,0.05263,95045.0,95040.0,0.413432]
[1736839355366,0.0643,95048.0,95038.0,0.25158728]
[1736839355668,0.052633,95039.0,95038.0,0.25158728]
[1736839356579,0.052633,95039.0,95032.0,0.3608]
[1736839356580,0.052637,95033.0,95032.0,0.3608]
[1736839356768,0.052637,95033.0,95019.0,0.1883321]
[1736839356769,0.052642,95024.0,95022.0,0.05422144]
[1736839356973,0.052642,95024.0,95023.0,0.56584]
[1736839358265,0.052642,95024.0,95023.0,0.58260634]
[1736839358667,0.053642,95024.0,95023.0,0.58460634]
[1736839358871,0.054642,95024.0,95023.0,0.58460634]
[1736839361867,0.054642,95024.0,95023.0,0.01876634]
[1736839367179,0.054642,95024.0,95023.0,0.07140834]
[1736839369377,0.002,95024.0,95023.0,0.07140834]
[1736839373181,0.054642,95024.0,95023.0,0.07140834]
[1736839380986,0.054642,95024.0,95023.0,0.43220834]
[1736839386386,0.054642,95024.0,95023.0,0.68379562]
[1736839388886,0.054642,95024.0,95023.0,0.43220834]
[1736839390593,0.3608,95037.0,95023.0,0.37956634]
[1736839390896,0.413435,95037.0,95036.0,0.052635]
[1736839391387,0.052635,95037.0,95036.0,0.052635]
[1736839391895,0.054635,95037.0,95036.0,0.052635]
[1736839392490,0.053635,95037.0,95036.0,0.052635]
[1736839393396,0.001,95037.0,95036.0,0.052635]
[1736839393594,0.052632,95042.0,95036.0,0.052635]
[1736839393894,0.001,95037.0,95036.0,0.057635]
[1736839394101,0.0312,95054.0,95036.0,0.07195791]
[1736839394288,0.0312,95054.0,95043.0,0.052631]
[1736839394289,0.052627,95051.0,95043.0,0.052631]
[1736839394683,0.031,95066.0,95048.0,0.052628]
[1736839394883,0.031,95066.0,95043.0,0.052631]
[1736839394884,0.052623,95058.0,95055.0,0.052624]
[1736839395091,0.052623,95058.0,95057.0,0.413423]
[1736839397494,0.053623,95058.0,95057.0,0.413423]
[1736839397689,0.053623,95058.0,95057.0,0.414423]
[1736839400494,0.053623,95058.0,95057.0,0.42855816]
[1736839403001,0.001,95058.0,95057.0,0.42855816]
[1736839404999,0.001,95058.0,95057.0,0.99443816]
[1736839410400,0.0332,95077.0,95057.0,0.99443816]
[1736839410600,0.052616,95072.0,95071.0,0.052614]
[1736839411402,0.0332,95077.0,95071.0,0.3608]
[1736839411610,0.085813,95077.0,95076.0,0.052613]
[1736839411796,0.0342,95077.0,95076.0,0.052613]
[1736839412002,0.001,95077.0,95076.0,0.052613]
[1736839413707,0.002,95077.0,95076.0,0.052613]
[1736839413904,0.001,95077.0,95076.0,0.052613]
[1736839414207,0.05419019,95078.0,95071.0,0.37681008]
[1736839414407,0.00157819,95078.0,95077.0,0.052612]
[1736839415406,0.00257819,95078.0,95077.0,0.052612]
[1736839417010,0.00157819,95078.0,95077.0,0.057612]
[1736839418715,0.05419019,95078.0,95077.0,0.057612]
[1736839420117,0.05419019,95078.0,95077.0,0.005]
[1736839421608,0.05419019,95078.0,95077.0,0.057612]
[1736839422014,0.00157819,95078.0,95077.0,0.057612]
[1736839422819,0.05419019,95078.0,95077.0,0.057612]
[1736839426917,0.00157819,95078.0,95077.0,0.057612]
[1736839431627,0.00257819,95078.0,95077.0,0.060612]
[1736839432129,0.001,95078.0,95077.0,0.060612]
[1736839432331,0.0302,95089.0,95077.0,0.060612]
[1736839432524,0.0302,95089.0,95084.0,0.3608]
[1736839432726,0.052608,95085.0,95084.0,0.413408]
[1736839432928,0.25270149,95085.0,95084.0,0.413408]
[1736839434427,0.25270149,95085.0,95084.0,0.421408]
[1736839435430,0.25270149,95085.0,95084.0,0.415408]
[1736839435628,0.25270149,95085.0,95084.0,0.422408]
[1736839437029,0.25270149,95085.0,95084.0,0.420408]
[1736839437228,0.20009349,95085.0,95084.0,0.422408]